bitfinex-derivatives/quotes_BTCF0:USTF0_20251109
["timestamp","ask_amount","ask_price","bid_price","bid_amount"]
[1762728763405,0.12648803,104900.0,104890.0,0.22087127]
[1762728763592,0.07105803,104900.0,104890.0,0.58167127]
[1762728764007,0.07205803,104900.0,104890.0,0.58167127]
[1762728764206,0.0260557,104900.0,104890.0,0.58167127]
[1762728764405,0.06166373,104900.0,104890.0,0.58167127]
[1762728765399,0.05666373,104900.0,104890.0,0.58167127]
[1762728765594,0.05866373,104900.0,104890.0,0.58167127]
[1762728766407,0.08361373,104900.0,104890.0,0.58167127]
[1762728766607,0.05766373,104900.0,104890.0,0.58167127]
[1762728767110,0.05766373,104900.0,104890.0,0.54144921]
[1762728768609,0.02425373,104900.0,104890.0,0.54144921]
[1762728768805,0.0902,104920.0,104910.0,0.0953436]
[1762728769110,0.14482803,104920.0,104910.0,0.54143111]
[1762728769505,0.16090525,104920.0,104910.0,0.54143111]
[1762728769904,0.16690525,104920.0,104910.0,0.54143111]
[1762728770103,0.16690525,104920.0,104910.0,0.54343111]
[1762728771513,0.16090525,104920.0,104910.0,0.54343111]
[1762728771711,0.16090525,104920.0,104910.0,0.54543111]
[1762728774019,0.16139525,104920.0,104910.0,0.86899862]
[1762728774309,0.16139525,104920.0,104910.0,0.54543111]
[1762728774516,0.16139525,104920.0,104910.0,0.90623111]
[1762728775217,0.16139525,104920.0,104910.0,0.18463101]
[1762728775518,0.25672965,104920.0,104910.0,0.08928751]
[1762728776322,0.61752965,104920.0,104910.0,0.004]
[1762728777015,0.2405135,104910.0,104900.0,0.00014346]
[1762728777319,0.60351153,104910.0,104900.0,0.00014346]
[1762728777614,0.24271153,104910.0,104900.0,0.18078357]
[1762728777813,0.14736803,104910.0,104900.0,0.18078357]
[1762728778115,0.24271153,104910.0,104900.0,0.18078357]
[1762728778316,0.24271153,104910.0,104900.0,0.18478357]
[1762728778513,0.60351153,104910.0,104900.0,0.18478357]
[1762728778719,0.24271153,104910.0,104900.0,0.18478357]
[1762728778908,0.60351153,104910.0,104900.0,0.18478357]
[1762728779109,0.24271153,104910.0,104900.0,0.18778357]
[1762728779315,0.60351153,104910.0,104900.0,0.18778357]
[1762728779512,0.14736803,104910.0,104900.0,0.18778357]
[1762728779711,0.14736803,104910.0,104900.0,0.54858357]
[1762728779914,0.14736803,104910.0,104900.0,0.18778357]
[1762728780218,0.14736803,104910.0,104900.0,0.54858357]
[1762728781711,0.60351153,104910.0,104900.0,0.10249606]
[1762728782014,0.60351153,104910.0,104900.0,0.18778357]
[1762728782207,0.14517,104890.0,104880.0,0.4561621]
[1762728782413,0.21981601,104890.0,104880.0,0.54144961]
[1762728782615,0.21981601,104890.0,104880.0,0.44608751]
[1762728782820,0.2405486,104880.0,104870.0,0.18066741]
[1762728783018,0.24274663,104880.0,104870.0,0.18066741]
[1762728783215,0.60354663,104880.0,104870.0,0.08528751]
[1762728783411,0.60354663,104880.0,104860.0,0.45679806]
[1762728783412,0.0953799,104870.0,104860.0,0.45679806]
[1762728783619,0.24274793,104870.0,104860.0,0.54208557]
[1762728784521,0.24274793,104870.0,104860.0,0.54308557]
[1762728785721,0.24274793,104870.0,104860.0,0.18228987]
[1762728786324,0.24274793,104870.0,104860.0,0.08690097]
[1762728787326,0.60354793,104870.0,104860.0,0.00161346]
[1762728787525,0.60354793,104870.0,104860.0,0.08690097]
[1762728787720,0.50816803,104870.0,104860.0,0.18228997]
[1762728787919,0.14736803,104870.0,104860.0,0.18228997]
[1762728790229,0.24274783,104870.0,104860.0,0.18228997]
[1762728790927,0.24274783,104870.0,104860.0,0.08528751]
[1762728791123,0.24274783,104870.0,104860.0,0.18067651]
[1762728791321,0.24274783,104870.0,104860.0,0.23428651]
[1762728791522,0.24274783,104870.0,104860.0,0.28767651]
[1762728792533,0.24274813,104870.0,104860.0,0.28767651]
[1762728794128,0.24274813,104870.0,104860.0,0.27215681]
[1762728796540,0.24274813,104870.0,104860.0,0.202389]
[1762728796742,0.24274813,104870.0,104860.0,0.28767651]
[1762728797239,0.60354813,104870.0,104860.0,0.28767651]
[1762728797742,0.60354813,104870.0,104860.0,0.28767671]
[1762728799838,0.24274813,104870.0,104860.0,0.28767671]
[1762728800034,0.60354813,104870.0,104860.0,0.28767671]
[1762728802542,0.60354813,104870.0,104860.0,0.19228751]
[1762728802744,0.60354813,104870.0,104860.0,0.08528751]
[1762728803250,0.60354813,104870.0,104860.0,0.28767641]
[1762728803839,0.2405589,104860.0,104850.0,0.00014346]
[1762728804038,0.60355693,104860.0,104850.0,0.00014346]
[1762728804249,0.240568,104850.0,104840.0,0.6378788]
[1762728804445,0.24276603,104850.0,104840.0,0.6378788]
[1762728804842,0.24276603,104850.0,104840.0,0.49920129]
[1762728805047,0.24276603,104850.0,104840.0,0.55259129]
[1762728805348,0.24276603,104850.0,104840.0,0.28768751]
[1762728805548,0.24276603,104850.0,104840.0,0.18068751]
[1762728805751,0.24276603,104850.0,104840.0,0.23429751]
[1762728806042,0.24276603,104850.0,104840.0,0.14489751]
[1762728806247,0.24276603,104850.0,104840.0,0.18669461]
[1762728807143,0.60356603,104850.0,104840.0,0.09128751]
[1762728807346,0.60356603,104850.0,104840.0,0.006]
[1762728807936,0.60356603,104850.0,104830.0,0.00014346]
[1762728807937,0.2329171,104840.0,104830.0,0.00014346]
[1762728808141,0.59591513,104840.0,104830.0,0.00014346]
[1762728809147,0.59591513,104840.0,104830.0,0.00914346]
[1762728814350,0.59591513,104840.0,104830.0,0.00457527]
[1762728819455,0.2329252,104830.0,104820.0,0.00014346]
[1762728819657,0.59592323,104830.0,104820.0,0.00014346]
[1762728820647,0.59692323,104830.0,104820.0,0.00714346]
[1762728821150,0.59692323,104830.0,104820.0,0.00914346]
[1762728821654,0.2329342,104820.0,104810.0,0.00477031]
[1762728821959,0.59593223,104820.0,104810.0,0.00477031]
[1762728824054,0.60793223,104820.0,104810.0,0.00577031]
[1762728824261,0.2329436,104810.0,104800.0,0.22851053]
[1762728824456,0.59594163,104810.0,104800.0,0.00014346]
[1762728824857,0.59594163,104810.0,104800.0,0.05754346]
[1762728825251,0.59594163,104810.0,104800.0,0.00014346]
[1762728825652,0.59894163,104810.0,104800.0,0.00014346]
[1762728826958,0.60494163,104810.0,104800.0,0.00114346]
[1762728827260,0.60694163,104810.0,104800.0,0.00114346]
[1762728827955,0.60694163,104810.0,104800.0,0.09658626]
[1762728829062,0.60694163,104810.0,104800.0,0.00114346]
[1762728829453,0.60694163,104810.0,104800.0,0.09658626]
[1762728829848,0.15070803,104810.0,104800.0,0.19814626]
[1762728830059,0.11835803,104810.0,104800.0,0.58981626]
[1762728830361,0.06656803,104810.0,104800.0,0.58981626]
[1762728830951,0.011,104810.0,104800.0,0.58981626]
[1762728831862,0.13134346,104830.0,104820.0,0.1969843]
[1762728832066,0.13354149,104830.0,104820.0,0.1969843]
[1762728832959,0.13354149,104830.0,104820.0,0.1979843]
[1762728833167,0.14454149,104830.0,104820.0,0.1979843]
[1762728833361,0.23995669,104830.0,104820.0,0.32335959]
[1762728833865,0.24595669,104830.0,104820.0,0.32335959]
[1762728834363,0.15054149,104830.0,104820.0,0.3078338]
[1762728834764,0.24595669,104830.0,104820.0,0.3078338]
[1762728834963,0.15054149,104830.0,104820.0,0.3078338]
[1762728841162,0.15054149,104830.0,104820.0,0.4552338]
[1762728841365,0.06844149,104830.0,104820.0,0.4552338]
[1762728841568,0.00714346,104830.0,104820.0,1.2676338]
[1762728841770,0.00114346,104830.0,104820.0,1.5061138]
[1762728842072,0.00514346,104830.0,104820.0,1.5061138]
[1762728842262,0.00414346,104830.0,104820.0,0.9061138]
[1762728842568,0.00414346,104830.0,104820.0,0.9071138]
[1762728843364,0.00014346,104830.0,104820.0,0.9071138]
[1762728843564,0.00214346,104830.0,104820.0,0.9071138]
[1762728843955,0.00014346,104830.0,104820.0,0.9071138]
[1762728844166,0.00114346,104830.0,104820.0,0.9061138]
[1762728844468,0.13356,104850.0,104840.0,0.09695]
[1762728844671,0.13575803,104850.0,104840.0,0.80420018]
[1762728845764,0.13775803,104850.0,104840.0,0.44340018]
[1762728845969,0.13775803,104850.0,104840.0,0.80420018]
[1762728846368,0.05643803,104850.0,104840.0,0.81686018]
[1762728846563,0.13731803,104850.0,104840.0,0.80420018]
[1762728846772,0.13931803,104850.0,104840.0,0.80420018]
[1762728849172,0.10951803,104850.0,104840.0,0.80420018]
[1762728849359,0.05843803,104850.0,104840.0,0.80420018]
[1762728849767,0.004,104850.0,104840.0,0.80420018]
[1762728849964,0.004,104850.0,104840.0,1.04264018]
[1762728850867,0.002,104850.0,104840.0,0.80420018]
[1762728851069,0.002,104850.0,104840.0,0.80520018]
[1762728851367,0.00014346,104860.0,104850.0,0.1853872]
[1762728851568,0.00014346,104860.0,104850.0,0.5461872]
[1762728851773,0.05238346,104860.0,104850.0,0.5461872]
[1762728852764,0.05438346,104860.0,104850.0,0.5461872]
[1762728852964,0.05438346,104860.0,104850.0,0.6827505]
[1762728853368,0.00314346,104860.0,104850.0,0.6827505]
[1762728854574,0.00214346,104860.0,104850.0,0.6837505]
[1762728855863,0.0045,104870.0,104860.0,0.1638281]
[1762728856173,0.0045,104870.0,104860.0,0.57739076]
[1762728856475,0.0045,104870.0,104860.0,0.64567241]
[1762728856976,0.0065,104870.0,104860.0,0.64567241]
[1762728857175,0.0075,104870.0,104860.0,0.64567241]
[1762728857366,0.13326346,104880.0,104870.0,0.163819]
[1762728857570,0.13546149,104880.0,104870.0,0.3003823]
[1762728857871,0.13546149,104880.0,104870.0,0.6611823]
[1762728858377,0.05458149,104880.0,104870.0,0.6738423]
[1762728858571,0.10866149,104880.0,104870.0,0.6738423]
[1762728859277,0.11066149,104880.0,104870.0,0.6738423]
[1762728860678,0.00514346,104880.0,104870.0,1.0596023]
[1762728861178,0.11066149,104880.0,104870.0,1.0596023]
[1762728861478,0.14046149,104880.0,104870.0,0.8212423]
[1762728861775,0.00734149,104880.0,104870.0,0.8212423]
[1762728861977,0.00514346,104880.0,104870.0,1.0596023]
[1762728862165,0.00514346,104880.0,104870.0,0.923039]
[1762728862671,0.00514346,104880.0,104870.0,0.8212423]
[1762728862879,0.00514346,104880.0,104870.0,1.0596023]
[1762728863580,0.00514346,104880.0,104870.0,0.8212423]
[1762728863971,0.00514346,104880.0,104870.0,1.0596023]
[1762728865868,0.14046149,104880.0,104870.0,0.7132033]
[1762728866175,0.23583129,104880.0,104870.0,0.64492165]
[1762728866381,0.1218864,104870.0,104860.0,0.11150165]
[1762728866677,0.58151443,104870.0,104860.0,0.06828165]
[1762728867471,0.58251443,104870.0,104860.0,0.06828165]
[1762728868382,0.58351443,104870.0,104860.0,0.06828165]
[1762728870372,0.2185181,104860.0,104850.0,0.40416346]
[1762728870573,0.22071613,104860.0,104850.0,0.45083511]
[1762728870884,0.22071613,104860.0,104850.0,0.47244511]
[1762728871684,0.22071613,104860.0,104850.0,0.56784231]
[1762728872384,0.22071613,104860.0,104850.0,0.06942511]
[1762728872576,0.22071613,104860.0,104850.0,0.07042511]
[1762728873180,0.22071613,104860.0,104850.0,0.06942511]
[1762728873382,0.22071613,104860.0,104850.0,0.06842511]
[1762728873383,0.22671613,104860.0,104850.0,0.06842511]
[1762728874084,0.22371613,104860.0,104850.0,0.06842511]
[1762728874287,0.22871613,104860.0,104850.0,0.06842511]
[1762728874484,0.22871613,104860.0,104850.0,0.00014346]
[1762728874786,0.22871613,104860.0,104850.0,0.06842511]
[1762728875187,0.22871613,104860.0,104850.0,0.09003511]
[1762728876184,0.13332803,104860.0,104850.0,0.18543231]
[1762728876485,0.13232803,104860.0,104850.0,0.56769885]
[1762728876681,0.13232803,104860.0,104850.0,0.6359805]
[1762728877075,0.00919803,104860.0,104850.0,0.6449205]
[1762728877274,0.00719803,104860.0,104850.0,0.6449205]
[1762728877480,0.12313,104870.0,104860.0,0.1386081]
[1762728877681,0.12386267,104870.0,104860.0,0.56988778]
[1762728877880,0.12657346,104880.0,104870.0,0.138599]
[1762728878183,0.00087613,104880.0,104870.0,0.63816033]
[1762728878383,0.00087613,104880.0,104870.0,0.65082033]
[1762728878584,0.00014346,104880.0,104870.0,0.88918033]
[1762728878889,0.00014346,104880.0,104870.0,0.87773229]
[1762728879295,0.00014346,104880.0,104870.0,0.63937229]
[1762728879482,0.00014346,104880.0,104870.0,0.87873229]
[1762728879790,0.12763,104900.0,104890.0,0.1383006]
[1762728879984,0.12836267,104900.0,104890.0,0.62641389]
[1762728880292,0.00523267,104900.0,104890.0,0.63521389]
[1762728880489,0.00523267,104900.0,104890.0,0.99601389]
[1762728881289,0.0045,104900.0,104890.0,0.99601389]
[1762728882998,0.00523267,104900.0,104890.0,0.99801389]
[1762728883294,0.00523267,104900.0,104890.0,0.99901389]
[1762728885291,0.00523267,104900.0,104890.0,1.14641389]
[1762728889095,0.0045,104900.0,104890.0,1.10657741]
[1762728889299,0.00014346,104910.0,104900.0,0.1221115]
[1762728889489,0.00014346,104910.0,104900.0,0.71778831]
[1762728889884,0.10693613,104910.0,104900.0,0.71778831]
[1762728891191,0.10693613,104910.0,104900.0,0.57038831]
[1762728891192,0.00087613,104910.0,104900.0,0.57038831]
[1762728892689,0.00014346,104910.0,104900.0,0.57038831]
[1762728894098,0.06551346,104910.0,104900.0,0.48510953]
[1762728894398,0.06551346,104910.0,104900.0,0.57038831]
[1762728895793,0.06624613,104910.0,104900.0,0.57038831]
[1762728895995,0.10693613,104910.0,104900.0,0.57038831]
[1762728896197,0.06624613,104910.0,104900.0,0.57038831]
[1762728896398,0.02581613,104910.0,104900.0,0.57038831]
[1762728896701,0.11162613,104910.0,104900.0,0.48510953]
[1762728896890,0.11162613,104910.0,104900.0,0.57038831]
[1762728898101,0.00087613,104910.0,104900.0,0.57038831]
[1762728898601,0.04346613,104910.0,104900.0,0.57038831]
[1762728899099,0.04346613,104910.0,104900.0,0.68975945]
[1762728899900,0.11244613,104910.0,104900.0,0.52619131]
[1762728900101,0.20778843,104910.0,104900.0,0.51281131]
[1762728900997,0.00014346,104910.0,104900.0,0.59060795]
[1762728901200,0.06835,104950.0,104930.0,0.095324]
[1762728901500,0.11376803,104950.0,104940.0,0.49723328]
[1762728901801,0.22581562,104950.0,104940.0,0.49723328]
[1762728902397,0.22581562,104950.0,104940.0,0.06821664]
[1762728902602,0.58661562,104950.0,104940.0,0.13643328]
[1762728902904,0.2068851,104940.0,104930.0,0.44619517]
[1762728903106,0.20908313,104940.0,104930.0,0.44619517]
[1762728904498,0.21008313,104940.0,104930.0,0.44619517]
[1762728905303,0.2068942,104930.0,104920.0,0.3608]
[1762728905605,0.20909223,104930.0,104920.0,0.44605171]
[1762728906301,0.20909223,104930.0,104920.0,0.08525171]
[1762728906905,0.56989223,104930.0,104920.0,0.08525171]
[1762728907506,0.57189223,104930.0,104920.0,0.08525171]
[1762728907706,0.57289223,104930.0,104920.0,0.08525171]
[1762728908708,1.17289223,104930.0,104920.0,0.08525171]
[1762728909105,1.17589223,104930.0,104920.0,0.08525171]
[1762728909707,0.2069033,104920.0,104910.0,0.44619517]
[1762728909903,0.20910133,104920.0,104910.0,0.44619517]
[1762728910612,0.2069124,104910.0,104900.0,0.3608]
[1762728910812,0.20911043,104910.0,104900.0,0.3608]
[1762728911004,0.2069215,104900.0,104890.0,0.44605171]
[1762728911204,0.20911953,104900.0,104890.0,0.44605171]
[1762728912314,0.11376803,104900.0,104890.0,0.54141221]
[1762728912515,0.20911943,104900.0,104890.0,0.54141221]
[1762728912812,0.21111943,104900.0,104890.0,0.54141221]
[1762728913017,0.21211943,104900.0,104890.0,0.54141221]
[1762728913214,0.21211943,104900.0,104890.0,0.08525171]
[1762728914023,0.2069304,104890.0,104880.0,0.08539517]
[1762728914216,0.20912843,104890.0,104880.0,0.08539517]
[1762728915116,0.20912843,104890.0,104880.0,0.44619517]
[1762728915318,0.20912843,104890.0,104880.0,0.08539517]
[1762728916321,0.20912843,104890.0,104880.0,0.00014346]
[1762728916514,0.56992843,104890.0,104880.0,7.621e-05]
[1762728916716,0.2069395,104880.0,104870.0,0.36556758]
[1762728916912,0.20913753,104880.0,104870.0,0.36556758]
[1762728918220,0.20913753,104880.0,104870.0,0.36756758]
[1762728918412,0.20913753,104880.0,104870.0,0.36856758]
[1762728918613,0.56993753,104880.0,104870.0,0.00776758]
[1762728920833,0.20913753,104880.0,104870.0,0.00776758]
[1762728921128,0.56993753,104880.0,104870.0,0.00776758]
[1762728921328,0.20913753,104880.0,104870.0,0.00776758]
[1762728921533,0.56993753,104880.0,104870.0,0.00776758]
[1762728921925,0.11376803,104880.0,104870.0,0.18839779]
[1762728922125,0.11376803,104880.0,104870.0,0.54919779]
[1762728922326,0.20913743,104880.0,104870.0,0.54919779]
[1762728922630,0.11376803,104880.0,104870.0,0.54919779]
[1762728923134,0.20913753,104880.0,104870.0,0.54919779]
[1762728924036,0.20913743,104880.0,104870.0,0.54919779]
[1762728924234,0.11376803,104880.0,104870.0,0.54919779]
[1762728926436,0.20913753,104880.0,104870.0,0.54919779]
[1762728928239,0.20913753,104880.0,104870.0,0.18839779]
[1762728929237,0.20913753,104880.0,104870.0,0.54919779]
[1762728933333,0.20913753,104880.0,104870.0,0.53367995]
[1762728933533,0.20913753,104880.0,104870.0,0.44842824]
[1762728933732,0.20913753,104880.0,104870.0,0.17287995]
[1762728934343,0.2001187,104870.0,104860.0,0.68897967]
[1762728934642,0.20231673,104870.0,104860.0,0.68897967]
[1762728935540,0.20231673,104870.0,104860.0,0.69197967]
[1762728935733,0.10693803,104870.0,104860.0,0.69197967]
[1762728936441,0.10693803,104870.0,104860.0,0.69497967]
[1762728936935,0.10693803,104870.0,104860.0,0.81459448]
[1762728937437,0.10693803,104870.0,104860.0,0.74630564]
[1762728943345,0.10693803,104870.0,104860.0,0.73078776]
[1762728945144,0.10693803,104870.0,104860.0,0.74616218]
[1762728948846,0.10693803,104870.0,104860.0,0.6778673]
[1762728952135,0.06633,104880.0,104870.0,0.0953787]
[1762728952339,0.06633,104880.0,104870.0,0.50273666]
[1762728952340,0.10793803,104880.0,104870.0,0.50273666]
[1762728952536,0.06852803,104880.0,104870.0,0.65013666]
[1762728952734,0.00219803,104880.0,104870.0,0.95677946]
[1762728952938,0.06647346,104890.0,104880.0,0.0953696]
[1762728953147,0.06647346,104890.0,104880.0,0.5927352]
[1762728953851,0.06867149,104890.0,104880.0,0.5927352]
[1762728954645,0.06967149,104890.0,104880.0,0.5927352]
[1762728956742,0.06747346,104890.0,104880.0,0.5927352]
[1762728957239,0.02690346,104890.0,104880.0,0.5927352]
[1762728957439,0.06442346,104890.0,104880.0,0.5927352]
[1762728958249,0.06342346,104890.0,104880.0,0.5937352]
[1762728958450,0.06342346,104890.0,104880.0,0.7411352]
[1762728959150,0.00014346,104890.0,104880.0,0.7411352]
[1762728961853,0.00014346,104890.0,104880.0,0.9794952]
[1762728962052,0.00014346,104890.0,104880.0,0.7411352]
[1762728962253,0.02576,104900.0,104890.0,0.0953606]
[1762728962454,0.02795803,104900.0,104890.0,0.65633009]
[1762728962654,0.06547803,104900.0,104890.0,0.65633009]
[1762728963360,0.06647803,104900.0,104890.0,0.65633009]
[1762728963556,0.10328803,104900.0,104890.0,0.65633009]
[1762728963759,0.10428803,104900.0,104890.0,0.65633009]
[1762728964248,0.00419803,104900.0,104890.0,0.65633009]
[1762728964651,0.002,104900.0,104890.0,0.96293289]
[1762728965050,0.002,104900.0,104890.0,0.72461289]
[1762728965357,0.002,104900.0,104890.0,0.96293289]
[1762728965557,0.00014346,104910.0,104900.0,0.0953515]
[1762728965748,0.00014346,104910.0,104900.0,0.5927171]
[1762728965954,0.00014346,104910.0,104900.0,0.8310371]
[1762728967653,0.00014346,104910.0,104900.0,0.8330371]
[1762728967856,0.0045,104930.0,104920.0,0.0953333]
[1762728968050,0.0045,104930.0,104920.0,1.1008989]
[1762728968258,0.0045,104930.0,104920.0,1.3391789]
[1762728969569,0.0045,104930.0,104920.0,1.1008989]
[1762728969864,0.0045,104930.0,104920.0,1.3391789]
[1762728970569,0.0045,104930.0,104920.0,1.1028989]
[1762728970967,0.06732803,104930.0,104920.0,1.2728961]
[1762728971266,0.02980803,104930.0,104920.0,1.0346161]
[1762728971460,0.00669803,104930.0,104920.0,1.2728961]
[1762728971662,0.00669803,104930.0,104920.0,1.3411789]
[1762728972063,0.0045,104930.0,104920.0,1.3411789]
[1762728972661,0.02761,104930.0,104920.0,1.2728961]
[1762728972955,0.00669803,104930.0,104920.0,1.3411789]
[1762728973269,0.06732803,104930.0,104920.0,1.0346161]
[1762728973666,0.00669803,104930.0,104920.0,1.0346161]
[1762728974265,0.0045,104930.0,104920.0,1.0346161]
[1762728975266,0.0045,104930.0,104920.0,1.2728961]
[1762728975889,0.0045,104930.0,104920.0,1.3411789]
[1762728976073,0.0045,104930.0,104920.0,1.1028989]
[1762728976573,0.0045,104930.0,104920.0,1.3411789]
[1762728976773,0.10413803,104930.0,104920.0,1.0346161]
[1762728977173,0.17655841,104930.0,104920.0,0.4310828]
[1762728977672,0.17655841,104930.0,104920.0,0.5264161]
[1762728977871,0.17655841,104930.0,104920.0,0.4310828]
[1762728978375,0.77655841,104930.0,104920.0,0.3628]
[1762728978867,0.1927733,104920.0,104910.0,0.52456246]
[1762728979175,0.19497133,104920.0,104910.0,0.52456246]
[1762728979978,0.19697133,104920.0,104910.0,0.52456246]
[1762728980773,0.19897133,104920.0,104910.0,0.52456246]
[1762728981772,0.19897133,104920.0,104910.0,0.16376866]
[1762728986877,0.19897133,104920.0,104910.0,0.1636252]
[1762728990888,0.10363803,104920.0,104910.0,0.231908]
[1762728991182,0.10363803,104920.0,104910.0,0.1636252]
[1762728992385,0.10363803,104920.0,104910.0,0.231908]
[1762728992783,0.10363803,104920.0,104910.0,0.592708]
[1762728994589,0.004,104920.0,104910.0,0.593148]
[1762728994781,0.004,104920.0,104910.0,0.740548]
[1762728994979,0.004,104920.0,104910.0,0.978828]
[1762728995589,0.002,104920.0,104910.0,0.744548]
[1762728996685,0.07695618,104930.0,104920.0,0.0957731]
[1762728996988,0.09550346,104940.0,104930.0,0.095764]
[1762728997189,0.09770149,104940.0,104930.0,0.5248468]
[1762728998395,0.09870149,104940.0,104930.0,0.5248468]
[1762728999489,0.09870149,104940.0,104930.0,0.6722468]
[1762729000791,0.09870149,104940.0,104930.0,0.603964]
[1762729000984,0.09870149,104940.0,104930.0,0.6722468]
[1762729005101,0.09870149,104940.0,104930.0,0.603964]
[1762729005294,0.09870149,104940.0,104930.0,0.6722468]
[1762729006195,0.09870149,104940.0,104930.0,0.5248468]
[1762729006899,0.09870149,104940.0,104930.0,0.50933864]
[1762729008799,0.09870149,104940.0,104930.0,0.48762694]
[1762729008998,0.09870149,104940.0,104930.0,0.55573834]
[1762729010203,0.19401669,104940.0,104930.0,0.55573834]
[1762729010807,0.09870149,104940.0,104930.0,0.55573834]
[1762729014397,0.09870149,104940.0,104930.0,0.19493834]
[1762729015106,0.09870149,104940.0,104930.0,0.55573834]
[1762729017006,0.09870149,104940.0,104930.0,0.54023004]
[1762729019403,0.09870149,104940.0,104930.0,0.5929582]
[1762729022210,0.06462149,104940.0,104930.0,0.5929582]
[1762729022602,0.09821149,104940.0,104930.0,0.5929582]
[1762729023303,0.03985159,104950.0,104940.0,0.0953151]
[1762729023517,0.11053962,104950.0,104940.0,0.2999064]
[1762729023906,0.11053962,104950.0,104940.0,0.6607064]
[1762729024611,0.11153962,104950.0,104940.0,0.6607064]
[1762729026813,0.11153962,104950.0,104940.0,0.64520047]
[1762729029018,0.11053962,104950.0,104940.0,0.62349208]
[1762729029217,0.11053962,104950.0,104940.0,0.62449208]
[1762729030203,0.11053962,104950.0,104940.0,0.5955095]
[1762729030405,0.11053962,104950.0,104940.0,0.2347095]
[1762729031214,0.20584582,104950.0,104940.0,0.0711971]
[1762729031413,0.56864582,104950.0,104940.0,0.0691971]
[1762729031617,0.56964582,104950.0,104940.0,0.0681971]
[1762729032213,0.78885586,104950.0,104940.0,0.0681971]
[1762729032416,0.1830105,104940.0,104930.0,0.0681971]
[1762729032616,0.18520853,104940.0,104930.0,0.0681971]
[1762729033519,0.40541857,104940.0,104930.0,0.0681971]
[1762729034115,0.40741857,104940.0,104930.0,0.0681971]
[1762729034516,0.40941857,104940.0,104930.0,0.0681971]
[1762729034718,0.18920853,104940.0,104930.0,0.0681971]
[1762729035224,0.55000853,104940.0,104930.0,0.0681971]
[1762729035412,0.1830144,104930.0,104920.0,0.42914056]
[1762729035618,0.54601243,104930.0,104920.0,0.06834056]
[1762729036111,0.54601243,104930.0,104920.0,0.00014346]
[1762729036310,0.08769,104910.0,104900.0,0.4561493]
[1762729036520,0.08988803,104910.0,104900.0,0.0953493]
[1762729036723,0.08769,104900.0,104890.0,0.4561549]
[1762729036923,0.08988803,104900.0,104890.0,0.41892329]
[1762729037316,0.08769,104890.0,104880.0,0.45630976]
[1762729037515,0.08988803,104890.0,104880.0,0.09550976]
[1762729037723,0.18524873,104890.0,104880.0,0.06834056]
[1762729037923,0.54604873,104890.0,104880.0,0.06834056]
[1762729038529,0.08988803,104890.0,104880.0,0.16371036]
[1762729039329,0.45068803,104890.0,104880.0,0.16371036]
[1762729039530,0.08988803,104890.0,104880.0,0.16371036]
[1762729039739,0.09188803,104890.0,104880.0,0.16371036]
[1762729040034,0.45268803,104890.0,104880.0,0.16371036]
[1762729040641,0.45468803,104890.0,104880.0,0.16371036]
[1762729042634,0.55004873,104890.0,104880.0,0.06834056]
[1762729045146,0.55004873,104890.0,104880.0,0.00014346]
[1762729045346,0.55004873,104890.0,104880.0,0.06834056]
[1762729047146,0.55004873,104890.0,104880.0,0.16371026]
[1762729048437,0.55004873,104890.0,104880.0,0.06834056]
[1762729049242,0.55004873,104890.0,104880.0,0.00014346]
[1762729049448,0.55004873,104890.0,104880.0,0.06834056]
[1762729051244,0.1756898,104880.0,104870.0,0.00476758]
[1762729051449,0.1756989,104870.0,104860.0,0.1635842]
[1762729051750,0.17789693,104870.0,104860.0,0.1635842]
[1762729052342,0.53869693,104870.0,104860.0,0.0681971]
[1762729053049,0.53869693,104870.0,104860.0,0.0701971]
[1762729053249,0.53869693,104870.0,104860.0,0.0711971]
[1762729053443,0.53869693,104870.0,104860.0,0.003]
[1762729061855,0.17789693,104870.0,104860.0,0.003]
[1762729062053,0.53869693,104870.0,104860.0,0.1665852]
[1762729063748,0.08251803,104870.0,104860.0,0.5955823]
[1762729066863,0.08251803,104870.0,104860.0,0.6637794]
[1762729066864,0.05304803,104870.0,104860.0,0.6637794]
[1762729067163,0.08251803,104870.0,104860.0,0.5955823]
[1762729067859,0.08251803,104870.0,104860.0,0.7429823]
[1762729069057,0.08032,104870.0,104860.0,0.8111794]
[1762729069263,0.04739346,104880.0,104870.0,0.1115994]
[1762729069464,0.07693149,104880.0,104870.0,0.23247632]
[1762729069854,0.07693149,104880.0,104870.0,0.59327632]
[1762729070564,0.07793149,104880.0,104870.0,0.59327632]
[1762729070956,0.07793149,104880.0,104870.0,0.52515279]
[1762729071855,0.07793149,104880.0,104870.0,0.59342346]
[1762729072357,0.07793149,104880.0,104870.0,0.52515279]
[1762729073966,0.07793149,104880.0,104870.0,0.59342346]
[1762729074165,0.03068149,104880.0,104870.0,0.59342346]
[1762729074566,0.03068149,104880.0,104870.0,0.52515279]
[1762729075764,0.03068149,104880.0,104870.0,0.67255279]
[1762729076166,0.00114346,104880.0,104870.0,0.74082346]
[1762729077266,0.04887,104890.0,104880.0,0.1088903]
[1762729077466,0.04887,104890.0,104880.0,0.60623164]
[1762729077768,0.07695,104890.0,104880.0,0.60623164]
[1762729077960,0.07914803,104890.0,104880.0,0.60623164]
[1762729078963,0.08014803,104890.0,104880.0,0.60623164]
[1762729079563,0.001,104890.0,104880.0,0.60623164]
[1762729079760,0.03067,104890.0,104880.0,0.60623164]
[1762729080167,0.05875,104890.0,104880.0,0.60623164]
[1762729080371,0.07796803,104890.0,104880.0,0.53796097]
[1762729080770,0.07796803,104890.0,104880.0,0.53996097]
[1762729081367,0.07696803,104890.0,104880.0,0.54096097]
[1762729081672,0.07696803,104890.0,104880.0,0.6200903]
[1762729081873,0.07696803,104890.0,104880.0,0.6190903]
[1762729082072,0.17232943,104890.0,104880.0,0.2582903]
[1762729082274,0.17232943,104890.0,104880.0,0.22925465]
[1762729082473,0.53312943,104890.0,104880.0,0.002]
[1762729082773,0.1701405,104880.0,104870.0,0.09551756]
[1762729082975,0.53313853,104880.0,104870.0,0.09551756]
[1762729087275,0.43776803,104880.0,104870.0,0.09551756]
[1762729087676,0.43776803,104880.0,104870.0,0.10227756]
[1762729089867,0.53313843,104880.0,104870.0,0.10227756]
[1762729090272,0.53313843,104880.0,104870.0,0.10903756]
[1762729090669,0.1250601,104860.0,104850.0,0.02951]
[1762729090982,0.53315813,104860.0,104850.0,0.0953974]
[1762729091777,0.1701676,104850.0,104840.0,0.22531563]
[1762729091983,0.17236563,104850.0,104840.0,0.15704496]
[1762729092184,0.17236563,104850.0,104840.0,0.17451496]
[1762729092785,0.53316563,104850.0,104840.0,0.15705126]
[1762729093483,0.53316563,104850.0,104840.0,0.00486456]
[1762729093680,0.05775,104830.0,104820.0,0.58803547]
[1762729093886,0.07696803,104830.0,104820.0,0.58803547]
[1762729095087,0.07696803,104830.0,104820.0,0.5197648]
[1762729095284,0.07696803,104830.0,104820.0,0.59103547]
[1762729096390,0.05994803,104830.0,104820.0,0.59103547]
[1762729098090,0.00219803,104830.0,104820.0,0.65930614]
[1762729098392,0.00014346,104840.0,104830.0,0.169666]
[1762729098582,0.41855,104860.0,104850.0,0.1696478]